fUSD/lending_fUSD_20241127
["ID","MTS","AMOUNT","RATE_DAILY","PERIOD"]
[343516711,1732709900216,-234.0,9.798e-05,2]
[343516712,1732709900239,-74517.43,9.799e-05,2]
[343516715,1732710283403,160.96988889,6.975e-05,2]
[343516716,1732710283422,25.94730435,6.975e-05,2]
[343516717,1732710354747,158.89303119,6.94e-05,2]
[343516718,1732710354769,158.89303119,6.94e-05,2]
[343516719,1732710354791,158.89303119,6.94e-05,2]
[343516720,1732710354814,158.89303119,6.94e-05,2]
[343516721,1732710354835,158.89303119,6.94e-05,2]
[343516722,1732710354857,158.89303119,6.94e-05,2]
[343516723,1732710354880,158.89303119,6.94e-05,2]
[343516724,1732710354903,158.89303119,6.94e-05,2]
[343516725,1732710354924,158.89303119,6.94e-05,2]
[343516726,1732710354945,158.89303119,6.94e-05,2]
[343516727,1732710354965,158.89303119,6.94e-05,2]
[343516728,1732710354986,158.89303119,6.94e-05,2]
[343516729,1732710355007,158.89303119,6.94e-05,2]
[343516730,1732710355028,158.89303119,6.94e-05,2]
[343516731,1732710355051,32186.58563362,6.94e-05,2]
[343516745,1732710526298,151.0,0.00028,120]
[343516768,1732710632797,-1286.9,8.219e-05,2]
[343516769,1732710632806,-2465.609388,8.953e-05,2]
[343516770,1732710632815,-150.0,8.999e-05,2]
[343516771,1732710632825,-10069.43477098,9e-05,2]
[343516772,1732710632835,-4134.99022726,9e-05,2]
[343516773,1732710632844,-4698.44553642,9e-05,2]
[343516774,1732710632854,-1500.0,9.306e-05,2]
[343516775,1732710632863,-1000.0,9.446e-05,2]
[343516776,1732710632874,-250.0,9.496e-05,2]
[343516777,1732710632884,-186.49,9.525e-05,2]
[343516778,1732710632893,-2882.51,9.566e-05,2]
[343516779,1732710632903,-250.0,9.627e-05,2]
[343516780,1732710632913,-404.74,9.661e-05,2]
[343516781,1732710632927,-188.0765,9.7e-05,2]
[343516782,1732710632937,-443.8505,9.7e-05,2]
[343516783,1732710632947,-29530.3071568,9.75e-05,2]
[343516784,1732710632956,-19148.77,9.778e-05,2]
[343516785,1732710632965,-57220.7615,9.799e-05,2]
[343516786,1732710632975,-10810.4309,9.8e-05,2]
[343516787,1732710632984,-27443.1193,9.8e-05,2]
[343516788,1732710632994,-1000.0,9.8e-05,2]
[343516789,1732710633003,-22541.59858285,9.8e-05,2]
[343516790,1732710633013,-255.0,9.899e-05,2]
[343516791,1732710633022,-165.55,9.938e-05,2]
[343516792,1732710633033,-773.98357261,9.967e-05,2]
[343516793,1732710633043,-1374.41895964,9.97e-05,2]
[343516794,1732710633052,-1374.41895964,9.98e-05,2]
[343516795,1732710633062,-1374.41895964,9.982e-05,2]
[343516796,1732710633072,-1374.41895964,9.995e-05,2]
[343516797,1732710633081,-1374.41895964,9.996e-05,2]
[343516798,1732710633091,-1374.41895964,9.998e-05,2]
[343516799,1732710633101,-841.35,9.999e-05,2]
[343516800,1732710633111,-231.706,9.999e-05,2]
[343516801,1732710633121,-773.98357262,0.0001,2]
[343516802,1732710633130,-773.98357261,0.0001,2]
[343516803,1732710633140,-2840.33962594,0.0001,2]
[343516804,1732710633150,-1178.60445871,0.0001,2]
[343516805,1732710633160,-9938.43904886,0.0001,2]
[343516806,1732710633174,-372.9696363,0.0001,2]
[343516807,1732710633209,-388.79,0.0001,2]
[343516808,1732710633283,-11888.32726053,0.0001,2]
[343516811,1732710638256,-41110.52508406,0.0001,2]
[343516812,1732710638265,-4536.37676035,0.0001,2]
[343516813,1732710638275,-11006.59401493,0.0001,2]
[343516814,1732710638284,-30877754.26180366,0.0001,2]
[343516815,1732710638333,-6039.34011002,0.0001,2]
[343516820,1732710640386,-30001.123131,0.0001,2]
[343516831,1732710643439,-29844.16809646,0.0001,2]
[343516832,1732710643451,-30598.7716613,0.0001,2]
[343516833,1732710643462,-23651.07521497,0.0001,2]
[343516834,1732710643542,-14.2628322,0.0001,2]
[343516835,1732710643554,-6872.21955883,0.0001,2]
[343516836,1732710643569,-3067.86999814,0.0001,2]
[343516837,1732710643580,-5991.22423871,0.0001,2]
[343516838,1732710643592,-5753.93398541,0.0001,2]
[343516839,1732710643602,-6250.3660095,0.0001,2]
[343516840,1732710643643,-26748.88097992,0.0001,2]
[343516841,1732710643654,-10520.15310013,0.0001,2]
[343516842,1732710643666,-2997.72470742,0.0001,2]
[343516843,1732710643682,-10504.3289,0.0001,2]
[343516844,1732710643709,-1959.16143758,0.0001,2]
[343516848,1732710646066,-1052.415,0.0001,2]
[343516849,1732710646078,-45827.80999934,0.0001,2]
[343516850,1732710646132,-392.96135172,0.0001,2]
[343516851,1732710646192,-2408.92006,0.0001,2]
[343516852,1732710646256,-3527.5,0.0001,2]
[343516853,1732710646314,-1030.91120165,0.0001,2]
[343516855,1732710646544,-706.59999993,0.0001,2]
[343516856,1732710646600,-14166.15460653,0.0001,2]
[343516861,1732710804389,74508.52,9.6e-05,6]
[343516862,1732710822330,2393.59,9.6e-05,6]
[343516863,1732710845395,8327.96,9.6e-05,6]
[343516865,1732711422530,150.0,6.975e-05,2]
[343516866,1732711422550,150.0,6.975e-05,2]
[343516867,1732711422571,10.63405953,6.975e-05,2]
[343516868,1732711424035,-158.55767499,8.219e-05,2]
[343516869,1732711427129,-161.19211112,8.219e-05,2]
[343516870,1732711428924,-161.19211112,8.219e-05,2]
[343516871,1732711430101,-161.19211112,8.219e-05,2]
[343516872,1732711430907,-161.19211112,8.219e-05,2]
[343516873,1732711431450,-161.19211112,8.219e-05,2]
[343516874,1732711432015,-150.0,8.219e-05,2]
[343516875,1732711432902,-150.0,8.219e-05,2]
[343516876,1732711434961,-150.0,8.219e-05,2]
[343516877,1732711435489,-8.42176941,8.219e-05,2]
[343516885,1732711832434,-150.0,8.219e-05,2]
[343516886,1732711832444,-150.0,8.219e-05,2]
[343516887,1732711832454,-150.0,8.219e-05,2]
[343516888,1732711832464,-150.0,8.219e-05,2]
[343516889,1732711832473,-150.0,8.219e-05,2]
[343516890,1732711832483,-56.301315,8.219e-05,2]
[343516891,1732711835576,-93.698685,8.219e-05,2]
[343516892,1732711835585,-150.0,8.219e-05,2]
[343516893,1732711835595,-280.50866753,8.219e-05,2]
[343516894,1732711835604,-195.06,9.363e-05,2]
[343516895,1732711835613,-250.0,9.389e-05,2]
[343516896,1732711835622,-1000.0,9.409e-05,2]
[343516897,1732711835631,-165.55,9.436e-05,2]
[343516898,1732711835640,-324.63,9.527e-05,2]
[343516899,1732711835649,-150.0,9.562e-05,2]
[343516900,1732711835658,-300.0,9.607e-05,2]
[343516901,1732711835667,-1500.0,9.78e-05,2]
[343516902,1732711835676,-363.48,9.78e-05,2]
[343516903,1732711835687,-4402.7016,9.8e-05,2]
[343516904,1732711835695,-483.5764,9.9e-05,2]
[343516905,1732711835704,-2500.0,9.9e-05,2]
[343516906,1732711835713,-450.0,9.9e-05,2]
[343516907,1732711835722,-434.46,9.9e-05,2]
[343516908,1732711835732,-250.0,9.925e-05,2]
[343516909,1732711835741,-6290.79983507,9.942e-05,2]
[343516912,1732711838544,-7084.76016493,9.942e-05,2]
[343516913,1732711838559,-186.49,9.972e-05,2]
[343516914,1732711838574,-500.0,9.973e-05,2]
[343516915,1732711838588,-150.0,9.998e-05,2]
[343516916,1732711838602,-12322.38142212,9.999e-05,2]
[343516917,1732711838617,-240.076,9.999e-05,2]
[343516918,1732711838632,-827.13,9.999e-05,2]
[343516919,1732711838646,-30913097.51747945,0.0001,2]
[343516938,1732711840470,-967.1526,9.9e-05,2]
[343516939,1732711840479,-1204.00718988,0.0001,2]
[343516943,1732711843914,-8224.80490481,0.0001,2]
[343516949,1732711844746,-34676.3775812,0.0001,2]
[343516951,1732711846407,-1671.23308771,0.0001,2]
[343516952,1732711846419,-9044.05841189,0.0001,2]
[343516953,1732711846468,-337.6345,0.0001,2]
[343516954,1732711846480,-284.1,0.0001,2]
[343516957,1732712057707,34244.94,0.00028,60]
[343516958,1732712057985,34244.94,0.00028,60]
[343516959,1732712058277,34244.94,0.00028,60]
[343516960,1732712058573,34244.94,0.00028,60]
[343516961,1732712058895,34244.94,0.00028,60]
[343516962,1732712059523,34244.94,0.00028,60]
[343516963,1732712059634,34244.94,0.00028,60]
[343516964,1732712060201,34244.94,0.00028,60]
[343516965,1732712060406,34244.94,0.00028,60]
[343516966,1732712060779,34244.94,0.00028,60]
[343516967,1732712061048,34244.94,0.00028,60]
[343516968,1732712061528,34244.94,0.00028,60]
[343516969,1732712061765,34244.94,0.00028,60]
[343516970,1732712062036,34244.94,0.00028,60]
[343516971,1732712062267,34244.94,0.00028,60]
[343516972,1732712064001,34244.94,0.00028,60]
[343516973,1732712064123,34244.94,0.00028,60]
[343516974,1732712064240,34244.94,0.00028,60]
[343516975,1732712064337,34244.94,0.00028,60]
[343516976,1732712064528,34244.94,0.00028,60]
[343516977,1732712064622,34244.94,0.00028,60]
[343516978,1732712064701,34244.94,0.00028,60]
[343516979,1732712064804,34244.94,0.00028,60]
[343516980,1732712064873,34245.1,0.00028,60]
[343516981,1732712220172,10000.0,0.00028,60]
[343516982,1732712250349,5063.0,0.00028,60]
[343516983,1732712305783,3000.0,0.00028,60]
[343516984,1732712315648,17122.47,0.00028,60]
[343516985,1732712315722,17122.47,0.00028,60]
[343516986,1732712315805,17122.47,0.00028,60]
[343516987,1732712315924,17122.47,0.00028,60]
[343516988,1732712316209,17122.47,0.00028,60]
[343516989,1732712316490,17122.47,0.00028,60]
[343516990,1732712316750,17122.47,0.00028,60]
[343516991,1732712317045,17122.47,0.00028,60]
[343516992,1732712317861,17122.47,0.00028,60]
[343516993,1732712317982,17122.47,0.00028,60]
[343516994,1732712318339,17122.47,0.00028,60]
[343516995,1732712318799,17122.47,0.00028,60]
[343516996,1732712319079,17122.47,0.00028,60]
[343516997,1732712319356,17122.47,0.00028,60]
[343517005,1732712319617,17122.47,0.00028,60]
[343517017,1732712319979,17122.47,0.00028,60]
[343517030,1732712320295,17122.47,0.00028,60]
[343517049,1732712320747,17122.47,0.00028,60]
[343517061,1732712321012,17122.47,0.00028,60]
[343517074,1732712321313,17122.47,0.00028,60]
[343517096,1732712321872,17122.47,0.00028,60]
[343517109,1732712322168,17122.47,0.00028,60]
[343517120,1732712322433,17122.47,0.00028,60]
[343517133,1732712322714,17122.61343054,0.00028,60]
[343517217,1732712353501,555.0,0.00028,60]
[343517218,1732712370750,500.0,0.00028,60]
[343517219,1732712370982,169.86638612,0.00028,60]
[343517225,1732712735030,8800.47,0.00028,60]
[343517226,1732712735967,8800.47,0.00028,60]
[343517227,1732712736486,8800.47,0.00028,60]
[343517228,1732712736607,8800.47,0.00028,60]
[343517229,1732712736850,8800.47,0.00028,60]
[343517230,1732712737061,8800.47,0.00028,60]
[343517231,1732712737337,8800.47,0.00028,60]
[343517232,1732712737602,8800.47,0.00028,60]
[343517233,1732712737907,8800.47,0.00028,60]
[343517234,1732712738172,8800.47,0.00028,60]
[343517235,1732712738424,8800.47,0.00028,60]
[343517236,1732712738686,8800.47,0.00028,60]
[343517237,1732712738965,8800.47,0.00028,60]
[343517238,1732712739267,8800.47,0.00028,60]
[343517239,1732712739526,8800.47,0.00028,60]
[343517240,1732712739792,8800.47,0.00028,60]
[343517241,1732712740165,8800.47,0.00028,60]
[343517242,1732712740860,8800.47,0.00028,60]
[343517243,1732712741092,8800.47,0.00028,60]
[343517244,1732712741371,8800.47,0.00028,60]
[343517245,1732712743510,8800.47,0.00028,60]
[343517246,1732712743860,8800.47,0.00028,60]
[343517247,1732712743964,8800.47,0.00028,60]
[343517248,1732712744065,8800.55594498,0.00028,60]
[343517249,1732712790106,-1351.79,8.219e-05,2]
[343517250,1732712790127,-2101.28802566,9.536e-05,2]
[343517260,1732713031471,-1284.2,8.219e-05,2]
[343517261,1732713031482,-2217.22197434,9.536e-05,2]
[343517262,1732713031491,-250.0,9.61e-05,2]
[343517263,1732713031503,-1000.0,9.625e-05,2]
[343517264,1732713031516,-313.98587408,9.716e-05,2]
[343517265,1732713031555,-1159.23412592,9.716e-05,2]
[343517266,1732713031566,-2500.0,9.9e-05,2]
[343517267,1732713031576,-2500.0,9.9e-05,2]
[343517268,1732713031586,-2500.0,9.9e-05,2]
[343517269,1732713031596,-500.0,9.973e-05,2]
[343517270,1732713031606,-500.0,9.973e-05,2]
[343517271,1732713031616,-500.0,9.973e-05,2]
[343517272,1732713031626,-8444.50445541,9.99e-05,2]
[343517273,1732713031637,-240.076,9.999e-05,2]
[343517274,1732713031648,-654.81,9.999e-05,2]
[343517275,1732713031659,-27231.45111866,0.0001,2]
[343517276,1732713031688,-53327.60021729,0.0001,2]
[343517295,1732713038413,-1097.03877463,9.9e-05,2]
[343517306,1732713038504,-1402.96122537,9.9e-05,2]
[343517308,1732713038515,-30912761.76225403,0.0001,2]
[343517324,1732713038664,-311.775,0.0001,2]
[343517326,1732713038676,-285.52893745,0.0001,2]
[343517459,1732713039608,-550.720004,0.0001,2]
[343517462,1732713039620,-623.94140865,0.0001,2]
[343517465,1732713039631,-2655.40140783,0.0001,2]
[343517480,1732713039773,-17425.0,0.0001,2]
[343517485,1732713039803,-1940.61348,0.0001,2]
[343517806,1732713043044,-7311.01352602,0.0001,2]
[343517809,1732713043058,-350.46954,0.0001,2]
[343517814,1732713043103,-1919.3610283,0.0001,2]
[343517820,1732713043143,-3598.32051675,0.0001,2]
[343517822,1732713043155,-666.93400679,0.0001,2]
[343517824,1732713043166,-2360.40000003,0.0001,2]
[343518060,1732713045540,-20406.0552265,0.0001,2]
[343518062,1732713045552,-13974.49319994,0.0001,2]
[343518069,1732713045604,-1751.26856231,0.0001,2]
[343518079,1732713045715,-4802.85872298,0.0001,2]
[343518080,1732713045727,-1738.64999999,0.0001,2]
[343518082,1732713045776,-21898.29679183,0.0001,2]
[343518096,1732713045895,-112716.0,0.0001,2]
[343519571,1732713088904,150.0,0.0001,10]
[343519575,1732713400747,-169.66,0.00016658,30]
[343519576,1732713412117,500.0,0.00028,60]
[343519577,1732713465671,-169.66,0.00019242,30]
[343519578,1732713512321,-226.5,8.959e-05,2]
[343519579,1732713512343,-300.0,9e-05,3]
[343519580,1732713512363,-700.0,9.1e-05,3]
[343519581,1732713512384,-250.0,9.157e-05,2]
[343519582,1732713512407,-1000.0,9.182e-05,2]
[343519583,1732713512428,-1100.0,9.2e-05,3]
[343519584,1732713512449,-1400.0,9.3e-05,3]
[343519585,1732713512470,-250.0,9.343e-05,2]
[343519586,1732713512490,-1800.0,9.4e-05,3]
[343519587,1732713512510,-250.0,9.407e-05,2]
[343519588,1732713512531,-184.3,9.45e-05,2]
[343519589,1732713512552,-300.0,9.5e-05,3]
[343519590,1732713512574,-300.0,9.6e-05,3]
[343519591,1732713512599,-300.0,9.669e-05,2]
[343519592,1732713512620,-150.99,9.67e-05,2]
[343519593,1732713512642,-150.99,9.67e-05,2]
[343519594,1732713512665,-7247.71,9.67e-05,2]
[343519595,1732713512690,-300.0,9.7e-05,3]
[343519596,1732713512711,-18379.70304093,9.79e-05,2]
[343519597,1732713512733,-300.0,9.8e-05,3]
[343519598,1732713512755,-1802.7332,9.9e-05,2]
[343519599,1732713512777,-981.0,9.9e-05,3]
[343519600,1732713512798,-34142.92325907,9.9e-05,2]
[343519601,1732713527134,-12196.0,9.801e-05,2]
[343519602,1732713527158,-2012.44154093,9.9e-05,2]
[343519603,1732713527184,-1000.0,9.9e-05,2]
[343519604,1732713527214,-1074.7057,9.9e-05,2]
[343519605,1732713527236,-3952.7882,9.9e-05,2]
[343519606,1732713527258,-2500.0,9.9e-05,2]
[343519607,1732713527279,-5459.9968,9.9e-05,2]
[343519608,1732713527300,-2549.6734,9.9e-05,2]
[343519609,1732713527322,-4144.5874,9.9e-05,2]
[343519612,1732713549037,1585.31,8.219e-05,2]
[343519613,1732713610529,35341.34645907,9.9e-05,2]
[343519614,1732713661150,922.47657864,0.00028,60]
[343519615,1732713721237,1241.39,0.00028,60]
[343519616,1732713836742,-333.9221,8.9e-05,2]
[343519617,1732713836764,-128340.94694093,9.9e-05,2]
[343519618,1732713836787,-2166.0779,9.9e-05,2]
[343519619,1732713845570,-333.9221,9.9e-05,2]
[343519620,1732713855055,-2500.0,9.9e-05,2]
[343519621,1732713858208,-150.0,9.9e-05,2]
[343519622,1732713858281,-150.0,9.9e-05,2]
[343519623,1732713858381,-150.0,9.9e-05,2]
[343519624,1732713858714,-150.0,9.9e-05,2]
[343519625,1732713858789,-150.0,9.9e-05,2]
[343519626,1732713858973,-150.0,9.9e-05,2]
[343519627,1732713859022,-150.0,9.9e-05,2]
[343519628,1732713859061,-150.0,9.9e-05,2]
[343519629,1732713859128,-150.0,9.9e-05,2]
[343519630,1732713859184,-150.0,9.9e-05,2]
[343519631,1732713859266,-150.0,9.9e-05,2]
[343519632,1732713859314,-150.0,9.9e-05,2]
[343519633,1732713859464,-150.0,9.9e-05,2]
[343519634,1732713859503,-150.0,9.9e-05,2]
[343519635,1732713859562,-150.0,9.9e-05,2]
[343519636,1732713859609,-150.0,9.9e-05,2]
[343519637,1732713859676,-112.4786509,9.9e-05,2]
[343519638,1732713914557,165.55,9.855e-05,2]
[343519639,1732713932775,150.2,9.9e-05,2]
[343519640,1732713942633,150.0,9.9e-05,2]
[343519642,1732713957489,1615.16683412,9.9e-05,2]
[343519643,1732713957838,1615.16683411,9.9e-05,2]
[343519644,1732713971598,2500.0,9.9e-05,2]
[343519645,1732713997812,152.69,0.00016658,30]
[343519646,1732713998026,152.69,0.00019242,30]
[343519647,1732713998875,900.0,9.9e-05,2]
[343519655,1732714097491,2500.0,9.9e-05,2]
[343519659,1732714122420,500.0,0.00028,60]
[343519660,1732714123062,604.53340906,0.00028,60]
[343519661,1732714123659,1296.55,0.00028,60]
[343519662,1732714123940,522.97,0.00028,60]
[343519663,1732714123975,1296.55,0.00028,60]
[343519664,1732714124007,594.59,0.00028,60]
[343519665,1732714124187,522.97,0.00028,60]
[343519666,1732714124294,1296.55,0.00028,60]
[343519667,1732714124489,594.59,0.00028,60]
[343519668,1732714124533,522.97,0.00028,60]
[343519669,1732714124563,1296.55,0.00028,60]
[343519670,1732714124605,594.59,0.00028,60]
[343519671,1732714124705,522.97,0.00028,60]
[343519672,1732714124744,1296.55,0.00028,60]
[343519673,1732714124775,3093.89,0.00028,60]
[343519674,1732714124847,737.89,0.00028,60]
[343519675,1732714124880,594.59,0.00028,60]
[343519676,1732714125013,522.97,0.00028,60]
[343519677,1732714125131,737.89,0.00028,60]
[343519678,1732714125166,594.59,0.00028,60]
[343519679,1732714125215,1296.55,0.00028,60]
[343519680,1732714125249,3093.89,0.00028,60]
[343519681,1732714125286,522.97,0.00028,60]
[343519682,1732714125349,500.0,0.00028,60]
[343519683,1732714125393,594.59,0.00028,60]
[343519684,1732714125433,737.89,0.00028,60]
[343519685,1732714125464,1296.55,0.00028,60]
[343519686,1732714125573,3093.89,0.00028,60]
[343519687,1732714125665,522.97,0.00028,60]
[343519688,1732714125704,500.0,0.00028,60]
[343519689,1732714125735,500.0,0.00028,60]
[343519690,1732714125765,594.59,0.00028,60]
[343519691,1732714125800,1296.55,0.00028,60]
[343519692,1732714125834,737.89,0.00028,60]
[343519693,1732714125888,3093.89,0.00028,60]
[343519694,1732714125920,522.97,0.00028,60]
[343519695,1732714125957,500.0,0.00028,60]
[343519696,1732714125996,500.0,0.00028,60]
[343519697,1732714126029,500.0,0.00028,60]
[343519698,1732714126062,594.59,0.00028,60]
[343519699,1732714126094,737.89,0.00028,60]
[343519700,1732714126147,7396.2,0.00028,60]
[343519701,1732714126410,522.97,0.00028,60]
[343519702,1732714126441,3093.89,0.00028,60]
[343519703,1732714126473,500.0,0.00028,60]
[343519704,1732714126511,500.0,0.00028,60]
[343519705,1732714126559,594.59,0.00028,60]
[343519706,1732714126597,737.89,0.00028,60]
[343519707,1732714126637,7396.2,0.00028,60]
[343519708,1732714126672,1296.55,0.00028,60]
[343519709,1732714126702,522.97,0.00028,60]
[343519710,1732714126740,500.0,0.00028,60]
[343519711,1732714126801,500.0,0.00028,60]
[343519712,1732714126954,594.59,0.00028,60]
[343519713,1732714127010,737.89,0.00028,60]
[343519714,1732714127044,7396.2,0.00028,60]
[343519715,1732714127075,522.97,0.00028,60]
[343519716,1732714127105,1296.55,0.00028,60]
[343519717,1732714127139,500.0,0.00028,60]
[343519718,1732714127168,500.0,0.00028,60]
[343519719,1732714127198,509.56692126,0.00028,60]
[343519720,1732714127233,3093.89,0.00028,60]
[343519721,1732714127271,594.59,0.00028,60]
[343519722,1732714127323,7396.2,0.00028,60]
[343519723,1732714127358,737.89,0.00028,60]
[343519724,1732714127389,1296.55,0.00028,60]
[343519725,1732714127423,522.97,0.00028,60]
[343519726,1732714127461,168.5056839,0.00028,60]
[343519727,1732714127494,500.0,0.00028,60]
[343519728,1732714127527,3093.89,0.00028,60]
[343519729,1732714127558,594.59,0.00028,60]
[343519730,1732714127614,7396.2,0.00028,60]
[343519731,1732714127652,1296.55,0.00028,60]
[343519732,1732714127685,522.97,0.00028,60]
[343519733,1732714127715,500.0,0.00028,60]
[343519734,1732714127752,3093.89,0.00028,60]
[343519735,1732714127792,594.59,0.00028,60]
[343519736,1732714127875,7396.2,0.00028,60]
[343519737,1732714127906,737.89,0.00028,60]
[343519738,1732714127937,522.97,0.00028,60]
[343519739,1732714127971,1296.55,0.00028,60]
[343519740,1732714128003,3093.89,0.00028,60]
[343519741,1732714128037,594.59,0.00028,60]
[343519742,1732714128096,1296.55,0.00028,60]
[343519743,1732714128129,522.97,0.00028,60]
[343519744,1732714128168,594.59,0.00028,60]
[343519745,1732714128213,737.89,0.00028,60]
[343519746,1732714128248,3093.89,0.00028,60]
[343519747,1732714128293,1296.55,0.00028,60]
[343519748,1732714128327,522.97,0.00028,60]
[343519749,1732714128361,7396.2,0.00028,60]
[343519750,1732714128411,594.59,0.00028,60]
[343519751,1732714128447,3093.89,0.00028,60]
[343519752,1732714128491,737.89,0.00028,60]
[343519753,1732714128527,1296.55,0.00028,60]
[343519754,1732714128639,522.97,0.00028,60]
[343519755,1732714128682,7396.2,0.00028,60]
[343519756,1732714128762,3093.89,0.00028,60]
[343519757,1732714128854,594.59,0.00028,60]
[343519758,1732714128896,737.89,0.00028,60]
[343519759,1732714128938,522.97,0.00028,60]
[343519760,1732714128974,7396.2,0.00028,60]
[343519761,1732714129012,1296.55,0.00028,60]
[343519762,1732714129067,3093.89,0.00028,60]
[343519763,1732714129106,594.59,0.00028,60]
[343519764,1732714129138,737.89,0.00028,60]
[343519765,1732714129176,7396.2,0.00028,60]
[343519766,1732714129216,522.97,0.00028,60]
[343519767,1732714129255,1296.55,0.00028,60]
[343519768,1732714129309,2288.49,0.00028,60]
[343519769,1732714129575,3093.89,0.00028,60]
[343519770,1732714129682,737.89,0.00028,60]
[343519771,1732714129780,7396.2,0.00028,60]
[343519772,1732714129818,522.97,0.00028,60]
[343519773,1732714129852,594.59,0.00028,60]
[343519774,1732714129888,1296.55,0.00028,60]
[343519775,1732714129929,2288.49,0.00028,60]
[343519776,1732714129985,3093.89,0.00028,60]
[343519777,1732714130051,737.89,0.00028,60]
[343519778,1732714130088,1296.55,0.00028,60]
[343519779,1732714130119,522.97,0.00028,60]
[343519780,1732714130151,594.59,0.00028,60]
[343519781,1732714130190,2288.49,0.00028,60]
[343519782,1732714130229,3093.89,0.00028,60]
[343519783,1732714130261,7396.2,0.00028,60]
[343519784,1732714130349,1296.55,0.00028,60]
[343519785,1732714130386,737.89,0.00028,60]
[343519786,1732714130453,522.97,0.00028,60]
[343519787,1732714130493,594.59,0.00028,60]
[343519788,1732714130577,3093.89,0.00028,60]
[343519789,1732714130608,7396.2,0.00028,60]
[343519790,1732714130643,1296.55,0.00028,60]
[343519791,1732714130674,594.59,0.00028,60]
[343519792,1732714130706,2288.49,0.00028,60]
[343519793,1732714130742,737.89,0.00028,60]
[343519794,1732714130773,522.97,0.00028,60]
[343519795,1732714130829,3093.89,0.00028,60]
[343519796,1732714130866,7396.2,0.00028,60]
[343519797,1732714130924,737.89,0.00028,60]
[343519798,1732714130959,523.16030747,0.00028,60]
[343519799,1732714130994,2288.49,0.00028,60]
[343519800,1732714131027,1296.55,0.00028,60]
[343519801,1732714131064,594.59,0.00028,60]
[343519802,1732714131097,3093.89,0.00028,60]
[343519803,1732714131130,7396.2,0.00028,60]
[343519804,1732714131313,737.89,0.00028,60]
[343519805,1732714131347,2288.49,0.00028,60]
[343519806,1732714131379,594.80817993,0.00028,60]
[343519807,1732714131411,1296.66176393,0.00028,60]
[343519808,1732714131447,3093.89,0.00028,60]
[343519809,1732714131481,7396.2,0.00028,60]
[343519810,1732714132517,500.0,0.00028,60]
[343519811,1732714132575,737.89,0.00028,60]
[343519812,1732714132612,7396.2,0.00028,60]
[343519813,1732714132652,3093.89,0.00028,60]
[343519814,1732714132684,500.0,0.00028,60]
[343519815,1732714132716,737.89,0.00028,60]
[343519816,1732714132750,2288.49,0.00028,60]
[343519817,1732714132795,7396.2,0.00028,60]
[343519818,1732714132831,3093.89,0.00028,60]
[343519819,1732714132862,500.0,0.00028,60]
[343519820,1732714132897,737.89,0.00028,60]